[Event "LJ Slovak Open 2022"]
[Site "Liptovsky Jan"]
[Date "2022.06.25"]
[Round "5.48"]
[White "Gay, Lukas"]
[Black "Szaszak, Matej"]
[Result "1-0"]
[ECO "C45"]
[WhiteElo "1480"]
[BlackElo "1235"]
[Annotator "NA RC"]
[PlyCount "71"]
[EventDate "2022.06.23"]
[EventType "swiss"]
[EventCountry "SVK"]
[SourceTitle "playchess.com"]
[Source "ChessBase"]
[SourceQuality "1"]
[TimeControl "3600+30"]

1. e4 {[%emt 0:00:04]} e5 {[%emt 0:00:03]} 2. Nf3 {[%emt 0:00:25]} Nc6 {[%emt 0:00:10]} 3. d4 {[%emt 0:00:17]} exd4 {[%emt 0:00:16]} 4. Nxd4 {[%emt 0:00:14]} Nxd4 {[%emt 0:00:06]} 5. Qxd4 {[%emt 0:00:16]} Qe7 {[%emt 0:00:16]} 6. Nc3 {[%emt 0:00:25]} Nf6 {[%emt 0:00:14]} 7. Be3 {[%emt 0:00:23]} c5 {[%emt 0:00:30]} 8. Qd3 {[%emt 0:00:25]} b6 {[%emt 0:00:16]} 9. f3 {[%emt 0:03:29]} g6 {[%emt 0:00:40]} 10. Nb5 {[%emt 0:00:35]} d6 {[%emt 0:00:58]} 11. O-O-O {[%emt 0:00:49]} Qd8 {[%emt 0:03:27]} 12. Nxd6+ {[%emt 0:01:44]} Bxd6 {[%emt 0:00:20]} 13. Qxd6 {[%emt 0:00:06]} Qxd6 {[%emt 0:00:08]} 14. Rxd6 {[%emt 0:00:06]} Be6 {[%emt 0:00:26]} 15. Bb5+ {[%emt 0:00:12]} Nd7 {[%emt 0:00:37]} 16. Bxd7+ {[%emt 0:00:16]} Bxd7 {[%emt 0:00:07]} 17. Rhd1 {[%emt 0:00:09]} Rd8 {[%emt 0:00:08]} 18. Bg5 {[%emt 0:00:09]} O-O {[%emt 0:02:46]} 19. Bxd8 {[%emt 0:00:06]} Rxd8 {[%emt 0:00:04]} 20. Rxd7 {[%emt 0:00:04]} Rxd7 {[%emt 0:00:06]} 21. Rxd7 {[%emt 0:00:04]} a6 {[%emt 0:00:30]} 22. Rd6 {[%emt 0:00:05]} b5 {[%emt 0:00:19]} 23. Rxa6 {[%emt 0:00:05]} Kf8 {[%emt 0:00:35]} 24. Ra5 {[%emt 0:00:04]} Ke7 {[%emt 0:00:13]} 25. Rxb5 {[%emt 0:00:04]} Kd6 {[%emt 0:00:12]} 26. c4 {[%emt 0:00:09]} f5 {[%emt 0:00:29]} 27. exf5 {[%emt 0:00:04]} gxf5 {[%emt 0:00:07]} 28. a4 {[%emt 0:00:03]} Kc6 {[%emt 0:01:02]} 29. a5 {[%emt 0:00:04]} Kc7 {[%emt 0:00:16]} 30. a6 {[%emt 0:00:03]} h5 {[%emt 0:00:10]} 31. a7 {[%emt 0:00:03]} h4 {[%emt 0:00:25]} 32. a8=Q {[%emt 0:00:08]} h3 {[%emt 0:00:07]} 33. gxh3 {[%emt 0:00:07]} f4 {[%emt 0:01:13]} 34. Qd5 {[%emt 0:00:07]} Kc8 {[%emt 0:00:24]} 35. Rxc5+ {[%emt 0:00:05]} Kb8 {[%emt 0:00:09]} 36. Qd2 {[%emt 0:00:08]} 1-0

[Event "LJ Slovak Open 2022"]
[Site "Liptovsky Jan"]
[Date "2022.06.25"]
[Round "5.49"]
[White "Vastik, Tomas"]
[Black "Haasova, Nina"]
[Result "1-0"]
[ECO "B50"]
[WhiteElo "1457"]
[BlackElo "1216"]
[Annotator "NA RC"]
[PlyCount "35"]
[EventDate "2022.06.23"]
[EventType "swiss"]
[EventCountry "SVK"]
[SourceTitle "playchess.com"]
[Source "ChessBase"]
[SourceQuality "1"]
[TimeControl "3600+30"]

1. e4 {[%emt 0:00:03]} d6 {[%emt 0:00:06]} 2. Nc3 {[%emt 0:00:17]} Nf6 {[%emt 0:00:15]} 3. h3 {[%emt 0:00:22]} c5 {[%emt 0:00:29]} 4. Nf3 {[%emt 0:00:41]} g6 {[%emt 0:00:23]} 5. Bb5+ {[%emt 0:02:53]} Bd7 {[%emt 0:00:12]} 6. Qe2 {[%emt 0:01:20]} Bg7 {[%emt 0:01:01]} 7. Bxd7+ {[%emt 0:04:51]} Nbxd7 {[%emt 0:00:30]} 8. O-O {[%emt 0:00:30]} O-O {[%emt 0:00:30]} 9. d3 {[%emt 0:00:24]} b6 {[%emt 0:01:09]} 10. Bg5 {[%emt 0:02:55]} h6 {[%emt 0:00:59]} 11. Bd2 {[%emt 0:00:32]} b5 {[%emt 0:00:57]} 12. a3 {[%emt 0:04:08]} a6 {[%emt 0:04:02]} 13. Nh2 {[%emt 0:02:21]} e5 {[%emt 0:00:30]} 14. Rfe1 {[%emt 0:00:30]} Nb6 {[%emt 0:01:06]} 15. Ng4 {[%emt 0:02:10]} h5 {[%emt 0:00:30]} 16. Nxf6+ {[%emt 0:00:26]} Bxf6 {[%emt 0:00:42]} 17. Qf3 {[%emt 0:00:59]} Kg7 {[%emt 0:05:19]} 18. h4 {[%emt 0:26:19]} 1-0

[Event "LJ Slovak Open 2022"]
[Site "Liptovsky Jan"]
[Date "2022.06.25"]
[Round "5.50"]
[White "Stefanides, Karol"]
[Black "Muller, Tomas"]
[Result "1-0"]
[ECO "A48"]
[WhiteElo "1438"]
[BlackElo "1240"]
[Annotator "NA RC"]
[PlyCount "44"]
[EventDate "2022.06.23"]
[EventType "swiss"]
[EventCountry "SVK"]
[SourceTitle "playchess.com"]
[Source "ChessBase"]
[SourceQuality "1"]
[TimeControl "3600+30"]

1. d4 {[%emt 0:00:08]} Nf6 {[%emt 0:00:46]} 2. Nf3 {[%emt 0:00:07]} g6 {[%emt 0:00:27]} 3. Nbd2 {[%emt 0:01:23]} Bg7 {[%emt 0:01:30]} 4. e4 {[%emt 0:01:05]} d5 {[%emt 0:02:30]} 5. e5 {[%emt 0:01:17]} Nfd7 {[%emt 0:01:43]} 6. Bd3 {[%emt 0:01:24]} O-O {[%emt 0:01:13]} 7. c3 {[%emt 0:00:57]} Nb6 {[%emt 0:03:25]} 8. b3 {[%emt 0:01:13]} f6 {[%emt 0:01:08]} 9. exf6 {[%emt 0:00:51]} Rxf6 {[%emt 0:01:18]} 10. O-O {[%emt 0:00:40]} Bg4 {[%emt 0:03:24]} 11. Be2 {[%emt 0:01:24]} Qd6 {[%emt 0:04:11]} 12. h3 {[%emt 0:00:43]} Be6 {[%emt 0:01:34]} 13. Ne5 {[%emt 0:01:33]} N8d7 {[%emt 0:02:33]} 14. Ndf3 {[%emt 0:00:06]} Rf5 {[%emt 0:03:40]} 15. Nxd7 {[%emt 0:01:01]} Nxd7 {[%emt 0:01:24]} 16. Ng5 {[%emt 0:01:03]} Nf6 {[%emt 0:01:57]} 17. Nxe6 {[%emt 0:02:08]} Qxe6 {[%emt 0:00:46]} 18. Be3 {[%emt 0:04:01]} Qc6 {[%emt 0:02:34]} 19. c4 {[%emt 0:01:08]} Ne4 {[%emt 0:01:54]} 20. Rc1 {[%emt 0:02:53]} Rc8 {[%emt 0:01:28]} 21. cxd5 {[%emt 0:01:42]} Qxd5 {[%emt 0:03:08]} 22. Bc4 {[%emt 0:00:24]} Qxc4 {[%emt 0:04:58]} 1-0

[Event "LJ Slovak Open 2022"]
[Site "Liptovsky Jan"]
[Date "2022.06.25"]
[Round "5.51"]
[White "Nedoba, Jakub"]
[Black "Ihnat, Marek"]
[Result "1-0"]
[ECO "D00"]
[WhiteElo "1158"]
[BlackElo "2045"]
[Annotator "NA RC"]
[PlyCount "35"]
[EventDate "2022.06.23"]
[EventType "swiss"]
[EventCountry "SVK"]
[SourceTitle "playchess.com"]
[Source "ChessBase"]
[SourceQuality "1"]
[TimeControl "3600+30"]

1. d4 {[%emt 0:00:04]} d5 {[%emt 0:00:12]} 2. Bf4 {[%emt 0:00:17]} c5 {[%emt 0:01:33]} 3. c3 {[%emt 0:01:00]} e6 {[%emt 0:01:39]} 4. e3 {[%emt 0:00:24]} Nc6 {[%emt 0:00:40]} 5. Bd3 {[%emt 0:01:11]} c4 {[%emt 0:03:11]} 6. Bc2 {[%emt 0:00:10]} Bd7 {[%emt 0:00:30]} 7. Nf3 {[%emt 0:00:41]} Nf6 {[%emt 0:00:52]} 8. Nbd2 {[%emt 0:00:58]} b5 {[%emt 0:00:46]} 9. a3 {[%emt 0:00:47]} Be7 {[%emt 0:00:41]} 10. Qb1 {[%emt 0:01:33]} h6 {[%emt 0:00:51]} 11. Ne5 {[%emt 0:01:25]} O-O {[%emt 0:01:51]} 12. Ndf3 {[%emt 0:02:20]} Nh5 {[%emt 0:07:10]} 13. h4 {[%emt 0:05:56]} Nxf4 {[%emt 0:02:37]} 14. exf4 {[%emt 0:02:02]} Nxe5 {[%emt 0:05:34]} 15. fxe5 {[%emt 0:03:57]} f6 {[%emt 0:00:50]} 16. g4 {[%emt 0:10:50]} fxe5 {[%emt 0:00:35]} 17. Nxe5 {[%emt 0:03:21]} Bxh4 {[%emt 0:01:07]} 18. Bh7+ {[%emt 0:03:18]} 1-0

[Event "LJ Slovak Open 2022"]
[Site "Liptovsky Jan"]
[Date "2022.06.25"]
[Round "5.52"]
[White "Zelenka, Matej"]
[Black "Socha, Wiktor"]
[Result "1-0"]
[ECO "B34"]
[WhiteElo "1400"]
[BlackElo "1020"]
[Annotator "NA RC"]
[PlyCount "121"]
[EventDate "2022.06.23"]
[EventType "swiss"]
[EventCountry "SVK"]
[SourceTitle "playchess.com"]
[Source "ChessBase"]
[SourceQuality "1"]
[TimeControl "3600+30"]

1. e4 {[%emt 0:00:15]} c5 {[%emt 0:00:35]} 2. Nf3 {[%emt 0:00:48]} g6 {[%emt 0:00:11]} 3. d4 {[%emt 0:01:11]} cxd4 {[%emt 0:00:06]} 4. Nxd4 {[%emt 0:00:24]} Nc6 {[%emt 0:00:09]} 5. Nc3 {[%emt 0:01:14]} Bg7 {[%emt 0:00:22]} 6. Be3 {[%emt 0:01:14]} Nf6 {[%emt 0:00:11]} 7. Nxc6 {[%emt 0:01:35]} bxc6 {[%emt 0:00:05]} 8. e5 {[%emt 0:01:38]} Ng8 {[%emt 0:02:52]} 9. Bd4 {[%emt 0:01:21]} Nh6 {[%emt 0:03:09]} 10. e6 {[%emt 0:02:03]} Bxd4 {[%emt 0:01:46]} 11. Qxd4 {[%emt 0:00:14]} f6 {[%emt 0:00:09]} 12. O-O-O {[%emt 0:00:40]} Nf5 {[%emt 0:01:39]} 13. Qg4 {[%emt 0:04:50]} d5 {[%emt 0:04:52]} 14. Qa4 {[%emt 0:04:03]} Qd6 {[%emt 0:01:27]} 15. Nxd5 {[%emt 0:02:22]} Kf8 {[%emt 0:05:58]} 16. Nxf6 {[%emt 0:05:42]} Qxe6 {[%emt 0:12:06]} 17. Ne4 {[%emt 0:01:46]} Kg7 {[%emt 0:04:38]} 18. Qc4 {[%emt 0:04:46]} a5 {[%emt 0:04:21]} 19. Qxe6 {[%emt 0:00:54]} Bxe6 {[%emt 0:00:15]} 20. b3 {[%emt 0:00:31]} a4 {[%emt 0:01:05]} 21. Nc5 {[%emt 0:00:13]} Kf7 {[%emt 0:02:53]} 22. Nxa4 {[%emt 0:00:14]} Rhc8 {[%emt 0:09:23]} 23. Nb6 {[%emt 0:00:16]} Rxa2 {[%emt 0:01:15]} 24. Kb1 {[%emt 0:00:48]} Ra7 {[%emt 0:02:08]} 25. Nxc8 {[%emt 0:00:08]} Bxc8 {[%emt 0:00:04]} 26. Bc4+ {[%emt 0:00:48]} Kf6 {[%emt 0:00:53]} 27. g3 {[%emt 0:01:47]} Nd6 {[%emt 0:00:24]} 28. Bd3 {[%emt 0:00:50]} Bf5 {[%emt 0:00:50]} 29. Bxf5 {[%emt 0:00:26]} gxf5 {[%emt 0:00:08]} 30. f4 {[%emt 0:00:22]} Ne4 {[%emt 0:00:28]} 31. Rd8 {[%emt 0:00:47]} Kf7 {[%emt 0:00:45]} 32. Kb2 {[%emt 0:01:05]} c5 {[%emt 0:02:42]} 33. Rhd1 {[%emt 0:03:40]} Rb7 {[%emt 0:00:49]} 34. R1d5 {[%emt 0:05:41]} c4 {[%emt 0:01:48]} 35. Rxf5+ {[%emt 0:00:13]} Kg6 {[%emt 0:00:57]} 36. Ra5 {[%emt 0:01:41]} Kf7 {[%emt 0:03:04]} 37. Rc8 {[%emt 0:01:48]} Nd6 {[%emt 0:00:20]} 38. Rc6 {[%emt 0:03:01]} Ke6 {[%emt 0:01:29]} 39. Rac5 {[%emt 0:07:30]} Kd7 {[%emt 0:00:52]} 40. Ra6 {[%emt 0:02:22]} Rb8 {[%emt 0:01:44]} 41. Ra7+ {[%emt 0:01:04]} Ke6 {[%emt 0:00:15]} 42. Re5+ {[%emt 0:00:08]} Kf6 {[%emt 0:01:01]} 43. Rexe7 {[%emt 0:00:33]} c3+ {[%emt 0:00:33]} 44. Kb1 {[%emt 0:00:17]} Rg8 {[%emt 0:01:03]} 45. Rxh7 {[%emt 0:01:11]} Re8 {[%emt 0:00:31]} 46. Rh6+ {[%emt 0:00:50]} Kf5 {[%emt 0:00:39]} 47. Rxd6 {[%emt 0:00:10]} Re1+ {[%emt 0:00:19]} 48. Ka2 {[%emt 0:00:16]} Rc1 {[%emt 0:00:26]} 49. Rc6 {[%emt 0:00:31]} Rxc2+ {[%emt 0:00:49]} 50. Kb1 {[%emt 0:00:13]} Rb2+ {[%emt 0:00:16]} 51. Kc1 {[%emt 0:00:08]} Rxb3 {[%emt 0:00:22]} 52. Ra2 {[%emt 0:00:41]} Rb2 {[%emt 0:00:44]} 53. Rxb2 {[%emt 0:00:11]} cxb2+ {[%emt 0:00:02]} 54. Kxb2 {[%emt 0:00:11]} Kg4 {[%emt 0:00:06]} 55. Rc5 {[%emt 0:00:10]} Kh3 {[%emt 0:00:45]} 56. f5 {[%emt 0:00:12]} Kg4 {[%emt 0:00:32]} 57. f6 {[%emt 0:00:07]} Kh3 {[%emt 0:00:18]} 58. f7 {[%emt 0:00:08]} Kg4 {[%emt 0:00:32]} 59. f8=Q {[%emt 0:00:22]} Kh3 {[%emt 0:00:09]} 60. Qf3 {[%emt 0:01:08]} Kxh2 {[%emt 0:00:26]} 61. Rh5+ {[%emt 0:01:27]} 1-0

[Event "LJ Slovak Open 2022"]
[Site "Liptovsky Jan"]
[Date "2022.06.25"]
[Round "5.53"]
[White "Vojtko, Imrich"]
[Black "Sotnik, Simon"]
[Result "1-0"]
[ECO "D00"]
[WhiteElo "1382"]
[BlackElo "1038"]
[Annotator "NA RC"]
[PlyCount "45"]
[EventDate "2022.06.23"]
[EventType "swiss"]
[EventCountry "SVK"]
[SourceTitle "playchess.com"]
[Source "ChessBase"]
[SourceQuality "1"]
[TimeControl "3600+30"]

1. Nf3 {[%emt 0:00:18]} Nf6 {[%emt 0:01:04]} 2. Nc3 {[%emt 0:00:40]} g6 {[%emt 0:00:35]} 3. d4 {[%emt 0:01:31]} d5 {[%emt 0:01:05]} 4. e3 {[%emt 0:04:17]} Bg4 {[%emt 0:06:01]} 5. Be2 {[%emt 0:00:14]} c5 {[%emt 0:01:45]} 6. dxc5 {[%emt 0:02:55]} Nc6 {[%emt 0:04:16]} 7. h3 {[%emt 0:00:46]} Bxf3 {[%emt 0:01:20]} 8. Bxf3 {[%emt 0:00:38]} e5 {[%emt 0:02:28]} 9. Bxd5 {[%emt 0:00:26]} Nxd5 {[%emt 0:01:14]} 10. Qxd5 {[%emt 0:00:14]} Qxd5 {[%emt 0:00:17]} 11. Nxd5 {[%emt 0:00:05]} Bxc5 {[%emt 0:01:50]} 12. Nc7+ {[%emt 0:00:18]} Ke7 {[%emt 0:02:34]} 13. Nxa8 {[%emt 0:00:10]} Rxa8 {[%emt 0:00:10]} 14. a3 {[%emt 0:00:13]} f5 {[%emt 0:01:09]} 15. O-O {[%emt 0:00:13]} Rd8 {[%emt 0:00:13]} 16. b4 {[%emt 0:00:32]} Bb6 {[%emt 0:00:45]} 17. c4 {[%emt 0:00:48]} a6 {[%emt 0:00:44]} 18. g3 {[%emt 0:00:08]} g5 {[%emt 0:01:10]} 19. c5 {[%emt 0:00:08]} Bc7 {[%emt 0:00:37]} 20. Ra2 {[%emt 0:00:24]} f4 {[%emt 0:00:44]} 21. g4 {[%emt 0:03:05]} f3 {[%emt 0:01:40]} 22. e4 {[%emt 0:00:15]} b6 {[%emt 0:01:19]} 23. Bxg5+ {[%emt 0:00:10]} 1-0

[Event "LJ Slovak Open 2022"]
[Site "Liptovsky Jan"]
[Date "2022.06.25"]
[Round "5.54"]
[White "Stricova Julia Nela"]
[Black "Polacok, Jozef"]
[Result "0-1"]
[ECO "B10"]
[WhiteElo "1149"]
[BlackElo "1386"]
[Annotator "NA RC"]
[PlyCount "96"]
[EventDate "2022.06.23"]
[EventType "swiss"]
[EventCountry "SVK"]
[SourceTitle "playchess.com"]
[Source "ChessBase"]
[SourceQuality "1"]
[TimeControl "3600+30"]

1. e4 {[%emt 0:00:01]} c6 {[%emt 0:00:07]} 2. Nf3 {[%emt 0:00:11]} d5 {[%emt 0:00:19]} 3. e5 {[%emt 0:00:47]} Bg4 {[%emt 0:00:46]} 4. g3 {[%emt 0:01:11]} e6 {[%emt 0:01:27]} 5. Bg2 {[%emt 0:00:21]} Nd7 {[%emt 0:00:36]} 6. d4 {[%emt 0:01:02]} c5 {[%emt 0:01:19]} 7. c3 {[%emt 0:01:19]} Ne7 {[%emt 0:01:49]} 8. O-O {[%emt 0:00:26]} Nc6 {[%emt 0:01:12]} 9. Bf4 {[%emt 0:02:56]} Be7 {[%emt 0:01:17]} 10. Qc1 {[%emt 0:01:31]} Qb6 {[%emt 0:02:41]} 11. a3 {[%emt 0:01:31]} Bxf3 {[%emt 0:03:02]} 12. Bxf3 {[%emt 0:00:12]} cxd4 {[%emt 0:00:09]} 13. Re1 {[%emt 0:01:40]} dxc3 {[%emt 0:01:09]} 14. Nxc3 {[%emt 0:00:27]} Nd4 {[%emt 0:00:46]} 15. Qe3 {[%emt 0:01:41]} Nc2 {[%emt 0:00:41]} 16. Qxb6 {[%emt 0:00:42]} Nxb6 {[%emt 0:00:03]} 17. Rab1 {[%emt 0:00:55]} Nxe1 {[%emt 0:00:09]} 18. Rxe1 {[%emt 0:00:10]} a6 {[%emt 0:01:21]} 19. Be3 {[%emt 0:00:50]} Nc4 {[%emt 0:01:05]} 20. Bc1 {[%emt 0:00:24]} b5 {[%emt 0:02:18]} 21. b3 {[%emt 0:00:21]} Nb6 {[%emt 0:00:44]} 22. Be3 {[%emt 0:00:15]} Nd7 {[%emt 0:00:23]} 23. a4 {[%emt 0:00:38]} Bb4 {[%emt 0:00:24]} 24. Rc1 {[%emt 0:00:17]} Rc8 {[%emt 0:00:48]} 25. Bd4 {[%emt 0:00:52]} O-O {[%emt 0:00:44]} 26. axb5 {[%emt 0:00:56]} axb5 {[%emt 0:00:26]} 27. Be2 {[%emt 0:00:30]} Bxc3 {[%emt 0:00:42]} 28. Bxc3 {[%emt 0:00:14]} b4 {[%emt 0:00:16]} 29. Bd2 {[%emt 0:00:15]} Rxc1+ {[%emt 0:00:13]} 30. Bxc1 {[%emt 0:00:07]} Nxe5 {[%emt 0:00:08]} 31. Bd2 {[%emt 0:00:23]} Nc6 {[%emt 0:00:40]} 32. Bb5 {[%emt 0:00:09]} Nd4 {[%emt 0:00:34]} 33. Ba4 {[%emt 0:00:20]} Nf3+ {[%emt 0:00:47]} 34. Kg2 {[%emt 0:00:42]} Nxd2 {[%emt 0:00:30]} 35. f3 {[%emt 0:00:30]} Rc8 {[%emt 0:00:13]} 36. g4 {[%emt 0:00:11]} Rc2 {[%emt 0:00:06]} 37. Kg3 {[%emt 0:00:15]} Rb2 {[%emt 0:00:12]} 38. h3 {[%emt 0:00:27]} Nxb3 {[%emt 0:00:09]} 39. h4 {[%emt 0:00:15]} Nc5 {[%emt 0:00:07]} 40. Bb5 {[%emt 0:00:15]} b3 {[%emt 0:00:12]} 41. Bf1 {[%emt 0:00:37]} d4 {[%emt 0:00:25]} 42. Bc4 {[%emt 0:00:53]} d3 {[%emt 0:00:14]} 43. Bxd3 {[%emt 0:00:07]} Nxd3 {[%emt 0:00:07]} 44. f4 {[%emt 0:00:09]} Rf2 {[%emt 0:00:19]} 45. g5 {[%emt 0:00:31]} b2 {[%emt 0:00:05]} 46. Kg4 {[%emt 0:00:08]} b1=Q {[%emt 0:00:22]} 47. Kg3 {[%emt 0:00:15]} Qg1+ {[%emt 0:00:11]} 48. Kh3 {[%emt 0:00:15]} Nxf4# {[%emt 0:00:14]} 0-1

[Event "LJ Slovak Open 2022"]
[Site "Liptovsky Jan"]
[Date "2022.06.25"]
[Round "5.55"]
[White "Magda, Juraj"]
[Black "Veres Alex"]
[Result "0-1"]
[ECO "C45"]
[WhiteElo "1301"]
[BlackElo "1000"]
[Annotator "NA RC"]
[PlyCount "52"]
[EventDate "2022.06.23"]
[EventType "swiss"]
[EventCountry "SVK"]
[SourceTitle "playchess.com"]
[Source "ChessBase"]
[SourceQuality "1"]
[TimeControl "3600+30"]

1. e4 {[%emt 0:00:02]} e5 {[%emt 0:00:04]} 2. Nf3 {[%emt 0:00:03]} Nf6 {[%emt 0:00:19]} 3. Nc3 {[%emt 0:00:51]} Nc6 {[%emt 0:00:23]} 4. d4 {[%emt 0:00:45]} exd4 {[%emt 0:00:35]} 5. Nxd4 {[%emt 0:00:07]} Nxd4 {[%emt 0:00:06]} 6. Qxd4 {[%emt 0:00:07]} c5 {[%emt 0:00:41]} 7. Qe5+ {[%emt 0:01:50]} Be7 {[%emt 0:00:20]} 8. Bg5 {[%emt 0:02:09]} d6 {[%emt 0:00:32]} 9. Bxf6 {[%emt 0:00:48]} dxe5 {[%emt 0:00:17]} 10. Bxe5 {[%emt 0:00:49]} Bf6 {[%emt 0:00:12]} 11. Bb5+ {[%emt 0:01:39]} Bd7 {[%emt 0:00:16]} 12. Rd1 {[%emt 0:00:17]} Bxe5 {[%emt 0:01:00]} 13. Rxd7 {[%emt 0:01:14]} Qa5 {[%emt 0:00:41]} 14. Rxb7+ {[%emt 0:01:41]} Kf8 {[%emt 0:00:46]} 15. O-O {[%emt 0:00:23]} Bxc3 {[%emt 0:00:49]} 16. bxc3 {[%emt 0:00:29]} Qxc3 {[%emt 0:00:09]} 17. Rd1 {[%emt 0:00:24]} Qxc2 {[%emt 0:00:31]} 18. Rbd7 {[%emt 0:02:38]} g6 {[%emt 0:01:24]} 19. g3 {[%emt 0:00:38]} Qxe4 {[%emt 0:02:04]} 20. Rc7 {[%emt 0:01:31]} Kg7 {[%emt 0:00:38]} 21. Bc6 {[%emt 0:01:20]} Qe2 {[%emt 0:00:48]} 22. Rdd7 {[%emt 0:01:58]} Raf8 {[%emt 0:01:09]} 23. Rxa7 {[%emt 0:01:32]} Rd8 {[%emt 0:01:06]} 24. Rxf7+ {[%emt 0:00:29]} Kh6 {[%emt 0:00:35]} 25. Bf3 {[%emt 0:01:15]} Rd1+ {[%emt 0:00:27]} 26. Kg2 {[%emt 0:00:37]} Qf1# {[%emt 0:00:12]} 0-1

[Event "LJ Slovak Open 2022"]
[Site "Liptovsky Jan"]
[Date "2022.06.25"]
[Round "5.56"]
[White "Pavlov Jakub"]
[Black "Papay Aurel"]
[Result "1-0"]
[ECO "C01"]
[WhiteElo "1000"]
[BlackElo "1294"]
[Annotator "NA RC"]
[PlyCount "50"]
[EventDate "2022.06.23"]
[EventType "swiss"]
[EventCountry "SVK"]
[SourceTitle "playchess.com"]
[Source "ChessBase"]
[SourceQuality "1"]
[TimeControl "3600+30"]

1. e4 {[%emt 0:00:06]} e6 {[%emt 0:00:08]} 2. d4 {[%emt 0:00:07]} d5 {[%emt 0:00:09]} 3. exd5 {[%emt 0:01:02]} exd5 {[%emt 0:00:10]} 4. Nf3 {[%emt 0:00:25]} Bd6 {[%emt 0:00:16]} 5. Bd3 {[%emt 0:00:20]} Ne7 {[%emt 0:00:21]} 6. Nc3 {[%emt 0:00:31]} O-O {[%emt 0:02:35]} 7. Be3 {[%emt 0:00:35]} Nbc6 {[%emt 0:02:59]} 8. a3 {[%emt 0:00:53]} Bg4 {[%emt 0:05:04]} 9. h3 {[%emt 0:00:20]} Bxf3 {[%emt 0:00:48]} 10. Qxf3 {[%emt 0:00:08]} Qe8 {[%emt 0:02:16]} 11. O-O-O {[%emt 0:01:09]} a6 {[%emt 0:05:29]} 12. Nxd5 {[%emt 0:00:21]} Nxd5 {[%emt 0:01:20]} 13. Qxd5 {[%emt 0:00:05]} Rd8 {[%emt 0:00:20]} 14. Qe4 {[%emt 0:03:24]} Qxe4 {[%emt 0:03:26]} 15. Bxe4 {[%emt 0:00:08]} Rfe8 {[%emt 0:00:22]} 16. Bxc6 {[%emt 0:00:11]} bxc6 {[%emt 0:00:15]} 17. Rd3 {[%emt 0:00:36]} g6 {[%emt 0:01:46]} 18. Rc3 {[%emt 0:00:36]} Ra8 {[%emt 0:11:57]} 19. Rxc6 {[%emt 0:00:52]} Ra7 {[%emt 0:01:58]} 20. Rd1 {[%emt 0:01:29]} Bf8 {[%emt 0:00:59]} 21. d5 {[%emt 0:01:09]} Rb7 {[%emt 0:00:30]} 22. Rxa6 {[%emt 0:00:47]} Bg7 {[%emt 0:01:04]} 23. b4 {[%emt 0:02:03]} Rb5 {[%emt 0:08:33]} 24. d6 {[%emt 0:01:54]} cxd6 {[%emt 0:01:21]} 25. Raxd6 {[%emt 0:00:19]} Bf6 {[%emt 0:01:03]} 1-0

[Event "LJ Slovak Open 2022"]
[Site "Liptovsky Jan"]
[Date "2022.06.25"]
[Round "5.57"]
[White "Bodnar, Frantisek"]
[Black "Stricova Viktoria Lea"]
[Result "1-0"]
[ECO "D02"]
[WhiteElo "1379"]
[BlackElo "1025"]
[Annotator "NA RC"]
[PlyCount "57"]
[EventDate "2022.06.23"]
[EventType "swiss"]
[EventCountry "SVK"]
[SourceTitle "playchess.com"]
[Source "ChessBase"]
[SourceQuality "1"]
[TimeControl "3600+30"]

1. d4 {[%emt 0:00:08]} d5 {[%emt 0:00:13]} 2. Bf4 {[%emt 0:00:09]} Nc6 {[%emt 0:00:29]} 3. e3 {[%emt 0:00:13]} a6 {[%emt 0:00:46]} 4. Nf3 {[%emt 0:00:11]} Bf5 {[%emt 0:02:13]} 5. c3 {[%emt 0:00:24]} Nf6 {[%emt 0:02:39]} 6. h3 {[%emt 0:01:15]} Qb8 {[%emt 0:05:11]} 7. Bd3 {[%emt 0:01:31]} e6 {[%emt 0:01:40]} 8. Bxf5 {[%emt 0:01:05]} exf5 {[%emt 0:00:43]} 9. Nbd2 {[%emt 0:00:31]} Nd7 {[%emt 0:03:15]} 10. Qc2 {[%emt 0:00:39]} b5 {[%emt 0:01:16]} 11. Qxf5 {[%emt 0:00:35]} g6 {[%emt 0:02:10]} 12. Qd3 {[%emt 0:00:32]} Nf6 {[%emt 0:02:01]} 13. O-O {[%emt 0:02:19]} Ne4 {[%emt 0:00:31]} 14. Ne5 {[%emt 0:00:30]} Nxe5 {[%emt 0:00:48]} 15. Bxe5 {[%emt 0:00:50]} Rg8 {[%emt 0:00:51]} 16. Nxe4 {[%emt 0:00:13]} dxe4 {[%emt 0:01:41]} 17. Qxe4 {[%emt 0:00:16]} Be7 {[%emt 0:04:05]} 18. d5 {[%emt 0:00:51]} Kf8 {[%emt 0:05:57]} 19. Qf4 {[%emt 0:02:18]} Qc8 {[%emt 0:03:06]} 20. Qh6+ {[%emt 0:00:30]} Ke8 {[%emt 0:01:54]} 21. Qxh7 {[%emt 0:00:00]} Kd7 {[%emt 0:01:25]} 22. Qxf7 {[%emt 0:00:09]} Qe8 {[%emt 0:02:07]} 23. Qe6+ {[%emt 0:01:02]} Kd8 {[%emt 0:01:21]} 24. Rad1 {[%emt 0:00:17]} a5 {[%emt 0:01:54]} 25. Rd3 {[%emt 0:00:34]} Rb8 {[%emt 0:00:51]} 26. Rfd1 {[%emt 0:00:34]} Rb6 {[%emt 0:00:33]} 27. d6 {[%emt 0:05:17]} Qd7 {[%emt 0:02:53]} 28. Qxg8+ {[%emt 0:00:44]} Qe8 {[%emt 0:01:14]} 29. dxc7+ {[%emt 0:00:08]} 1-0

[Event "LJ Slovak Open 2022"]
[Site "Liptovsky Jan"]
[Date "2022.06.25"]
[Round "5.58"]
[White "Magdova, Lucia"]
[Black "Polackova, Eva"]
[Result "0-1"]
[ECO "C48"]
[WhiteElo "1055"]
[BlackElo "1253"]
[Annotator "NA RC"]
[PlyCount "47"]
[EventDate "2022.06.23"]
[EventType "swiss"]
[EventCountry "SVK"]
[SourceTitle "playchess.com"]
[Source "ChessBase"]
[SourceQuality "1"]
[TimeControl "3600+30"]

1. e4 {[%emt 0:00:07]} e5 {[%emt 0:00:15]} 2. Nf3 {[%emt 0:00:15]} Nc6 {[%emt 0:00:28]} 3. Nc3 {[%emt 0:00:22]} Nf6 {[%emt 0:01:11]} 4. Bb5 {[%emt 0:00:28]} d6 {[%emt 0:01:52]} 5. d3 {[%emt 0:00:21]} Be7 {[%emt 0:01:30]} 6. O-O {[%emt 0:00:27]} O-O {[%emt 0:00:55]} 7. Bg5 {[%emt 0:00:34]} Bg4 {[%emt 0:01:03]} 8. h3 {[%emt 0:03:05]} Bh5 {[%emt 0:00:59]} 9. Re1 {[%emt 0:02:06]} Nd4 {[%emt 0:01:55]} 10. Nd5 {[%emt 0:06:59]} Nxf3+ {[%emt 0:01:00]} 11. gxf3 {[%emt 0:00:16]} Nxd5 {[%emt 0:01:02]} 12. Bxe7 {[%emt 0:02:01]} Nxe7 {[%emt 0:00:24]} 13. Kf1 {[%emt 0:05:20]} Qc8 {[%emt 0:01:57]} 14. Ke2 {[%emt 0:00:57]} Qxh3 {[%emt 0:02:12]} 15. Kd2 {[%emt 0:01:03]} Bxf3 {[%emt 0:04:12]} 16. Qb1 {[%emt 0:00:35]} Qe6 {[%emt 0:01:09]} 17. a4 {[%emt 0:05:58]} Nc6 {[%emt 0:03:11]} 18. Ra3 {[%emt 0:01:43]} Bh5 {[%emt 0:02:49]} 19. Rh1 {[%emt 0:02:24]} Bg4 {[%emt 0:02:20]} 20. Qg1 {[%emt 0:00:38]} Nd4 {[%emt 0:01:19]} 21. Ke3 {[%emt 0:01:47]} Nxc2+ {[%emt 0:00:24]} 22. Kd2 {[%emt 0:01:38]} Nxa3 {[%emt 0:00:51]} 23. bxa3 {[%emt 0:00:08]} Qa2+ {[%emt 0:00:30]} 24. Ke3 {[%emt 0:01:30]} 0-1